bitfinex/quotes_BTCUSD_20250813
["timestamp","ask_amount","ask_price","bid_price","bid_amount"]
[1755056327673,0.60789733,119510.0,119500.0,0.95406325]
[1755056331684,0.60789733,119510.0,119500.0,0.94873325]
[1755056331896,0.60789733,119510.0,119500.0,0.81909325]
[1755056332107,1.38174467,119510.0,119500.0,0.73637]
[1755056332323,1.38174467,119510.0,119500.0,0.66577]
[1755056332781,1.38174467,119510.0,119500.0,0.53637]
[1755056332782,1.48191694,119510.0,119500.0,0.53637]
[1755056332989,1.48091694,119510.0,119500.0,0.66481]
[1755056333424,1.50638694,119510.0,119500.0,0.66481]
[1755056333626,0.89988961,119510.0,119500.0,0.66481]
[1755056334469,1.50638694,119510.0,119500.0,0.66481]
[1755056335049,1.50538694,119510.0,119500.0,0.66481]
[1755056335434,1.50738694,119510.0,119500.0,0.66481]
[1755056335628,1.50538694,119510.0,119500.0,0.66481]
[1755056336039,1.50838694,119510.0,119500.0,0.66481]
[1755056336454,0.29539228,119510.0,119500.0,0.66481]
[1755056336672,1.50838694,119510.0,119500.0,0.66481]
[1755056337619,1.48391694,119510.0,119500.0,0.66481]
[1755056338407,0.025,119490.0,119440.0,0.01631252]
[1755056338590,0.17577634,119470.0,119460.0,0.20064]
[1755056338795,0.17577634,119470.0,119460.0,0.33016]
[1755056339255,0.20087934,119470.0,119460.0,0.33016]
[1755056339612,0.28360259,119470.0,119460.0,0.33016]
[1755056339821,1.49659725,119470.0,119460.0,0.33016]
[1755056340418,1.52260101,119470.0,119460.0,0.33016]
[1755056340902,1.52460101,119470.0,119460.0,0.33016]
[1755056342920,0.31160635,119470.0,119460.0,0.33016]
[1755056343128,1.52460101,119470.0,119460.0,0.33016]
[1755056344354,0.91810368,119470.0,119460.0,0.33311]
[1755056344979,0.90065466,119470.0,119460.0,0.33521]
[1755056345181,0.80937667,119470.0,119460.0,0.33521]
[1755056345428,0.63360033,119470.0,119460.0,0.53521]
[1755056345625,0.60849733,119470.0,119460.0,0.53521]
[1755056346302,0.60649733,119470.0,119460.0,0.53521]
[1755056346525,0.60749733,119470.0,119460.0,0.53521]
[1755056346958,0.60505733,119470.0,119460.0,0.53521]
[1755056348089,0.001,119470.0,119460.0,0.53521]
[1755056348229,0.61272875,119470.0,119460.0,0.53521]
[1755056348439,0.001,119470.0,119460.0,0.53521]
[1755056348624,0.61272875,119470.0,119460.0,0.53521]
[1755056348828,0.60749733,119470.0,119460.0,0.53521]
[1755056352928,0.60749733,119470.0,119460.0,0.61793325]
[1755056353762,0.001,119470.0,119460.0,0.61793325]
[1755056353993,0.60749733,119470.0,119460.0,0.61793325]
[1755056354215,0.001,119470.0,119460.0,0.64221325]
[1755056354447,0.60749733,119470.0,119460.0,0.64221325]
[1755056354836,0.60649733,119470.0,119460.0,0.42636009]
[1755056355181,0.60649733,119470.0,119460.0,0.41893325]
[1755056355572,0.60649733,119470.0,119460.0,0.41793325]
[1755056355994,0.60649733,119470.0,119460.0,0.42093325]
[1755056362606,0.2008443,119490.0,119460.0,0.42093325]
[1755056362811,0.60649733,119470.0,119460.0,0.41798325]
[1755056363353,0.60649733,119470.0,119460.0,0.75576325]
[1755056363529,0.60649733,119470.0,119460.0,0.75476325]
[1755056363941,0.60649733,119470.0,119460.0,0.75576325]
[1755056365284,0.60649733,119470.0,119460.0,0.75476325]
[1755056365488,0.60649733,119470.0,119460.0,0.75576325]
[1755056368376,0.60649733,119470.0,119460.0,0.75366325]
[1755056370583,0.60649733,119470.0,119460.0,0.67094]
[1755056370795,0.60649733,119470.0,119460.0,0.67298]
[1755056371007,0.16739246,119480.0,119460.0,0.67298]
[1755056371216,0.61172875,119470.0,119460.0,0.54051]
[1755056371418,0.60649733,119470.0,119460.0,0.67019]
[1755056371626,0.60649733,119470.0,119460.0,0.67332]
[1755056371808,0.60649733,119470.0,119460.0,0.54364]
[1755056372012,0.2008443,119490.0,119460.0,0.67232]
[1755056372213,0.2008443,119490.0,119470.0,0.13281]
[1755056372214,0.61172833,119480.0,119470.0,0.13281]
[1755056372399,0.60649733,119480.0,119470.0,0.46966]
[1755056373024,0.60649733,119480.0,119470.0,0.33998]
[1755056373267,1.21299466,119480.0,119470.0,0.4697]
[1755056373488,0.60649733,119480.0,119470.0,0.6707]
[1755056375126,0.19247534,119490.0,119470.0,0.6707]
[1755056375348,1.21299466,119480.0,119470.0,0.54098]
[1755056375560,1.21299466,119480.0,119470.0,0.66753]
[1755056376101,1.21299466,119480.0,119470.0,0.67066]
[1755056376299,0.19247534,119490.0,119470.0,0.67066]
[1755056376503,0.60649733,119480.0,119470.0,0.62057325]
[1755056376705,0.60649733,119480.0,119470.0,0.75025325]
[1755056377145,0.60649733,119480.0,119470.0,0.75338325]
[1755056380014,0.0334642,119500.0,119490.0,0.2]
[1755056380223,0.63682345,119500.0,119490.0,0.32956]
[1755056380424,0.63159333,119500.0,119490.0,0.32956]
[1755056380892,0.63159333,119500.0,119490.0,0.33473]
[1755056381076,0.60649733,119500.0,119490.0,0.33473]
[1755056381289,0.60861987,119500.0,119490.0,0.66949]
[1755056381749,0.00212254,119500.0,119490.0,0.66949]
[1755056381990,0.60861987,119500.0,119490.0,0.75221325]
[1755056382237,0.60961987,119500.0,119490.0,0.75221325]
[1755056382476,0.00312254,119500.0,119490.0,0.75221325]
[1755056382687,0.60761987,119500.0,119490.0,0.75221325]
[1755056382909,0.00112254,119500.0,119490.0,0.95289325]
[1755056383132,0.00012254,119500.0,119490.0,0.95289325]
[1755056383358,0.60661987,119500.0,119490.0,0.95289325]
[1755056383780,0.00012254,119500.0,119490.0,0.95389325]
[1755056383979,0.60661987,119500.0,119490.0,0.95389325]
[1755056384754,0.00012254,119500.0,119490.0,0.95389325]
[1755056384979,0.60661987,119500.0,119490.0,0.95389325]
[1755056385211,0.00012254,119500.0,119490.0,0.95389325]
[1755056385453,0.60661987,119500.0,119490.0,0.95389325]
[1755056386429,0.00012254,119500.0,119490.0,0.95389325]
[1755056386644,0.60661987,119500.0,119490.0,0.95389325]
[1755056390133,1.2131172,119500.0,119490.0,0.66913]
[1755056391034,1.2131172,119500.0,119490.0,0.67117]
[1755056391243,0.60661987,119500.0,119490.0,0.67117]
[1755056391661,0.60661987,119500.0,119490.0,0.66913]
[1755056392202,0.60661987,119500.0,119490.0,0.67117]
[1755056394795,0.77398388,119500.0,119490.0,0.66913]
[1755056395077,0.60661987,119500.0,119490.0,0.66913]
[1755056395727,1.38048121,119500.0,119490.0,0.666]
[1755056396398,1.38048121,119500.0,119490.0,0.66913]
[1755056396841,1.38048121,119500.0,119490.0,0.666]
[1755056399549,0.16748655,119500.0,119490.0,0.666]
[1755056399808,1.38309627,119500.0,119490.0,0.666]
[1755056400033,1.38048121,119500.0,119490.0,0.666]
[1755056401162,1.40557721,119500.0,119490.0,0.666]
[1755056401882,1.40557721,119500.0,119490.0,0.53644]
[1755056402109,1.40557721,119500.0,119490.0,0.66648]
[1755056404014,0.19258255,119500.0,119490.0,0.66648]
[1755056404228,1.40557721,119500.0,119490.0,0.66648]
[1755056412593,1.40557721,119500.0,119490.0,0.66941]
[1755056414733,1.40369721,119500.0,119490.0,0.66941]
[1755056415940,1.40369721,119500.0,119490.0,0.66648]
[1755056416673,1.42114623,119500.0,119490.0,0.66648]
[1755056416896,1.50386948,119500.0,119490.0,0.66648]
[1755056419442,0.29087482,119500.0,119490.0,0.66648]
[1755056419657,1.50386948,119500.0,119490.0,0.66941]
[1755056421934,1.50386948,119500.0,119490.0,0.66648]
[1755056423268,1.50486948,119500.0,119490.0,0.66648]
[1755056423811,1.50486948,119500.0,119490.0,0.66548]
[1755056424433,1.50686948,119500.0,119490.0,0.66548]
[1755056432716,1.50686948,119500.0,119490.0,0.66624]
[1755056434229,0.29387482,119500.0,119490.0,0.66624]
[1755056434430,1.50686948,119500.0,119490.0,0.66948]
[1755056436334,0.29387482,119500.0,119490.0,0.66948]
[1755056436514,1.50686948,119500.0,119490.0,0.66948]
[1755056439574,1.50686948,119500.0,119490.0,0.6715]
[1755056439794,1.50686948,119500.0,119490.0,0.66624]
[1755056440019,0.18482704,119490.0,119480.0,0.20392]
[1755056440245,2.08704228,119490.0,119480.0,0.20068]
[1755056440438,2.10996043,119490.0,119480.0,0.20068]
[1755056440887,2.13506243,119490.0,119480.0,0.20068]
[1755056441131,2.13506243,119490.0,119480.0,0.3316]
[1755056441606,2.13606243,119490.0,119480.0,0.3316]
[1755056442491,2.15170147,119490.0,119480.0,0.3316]
[1755056442709,0.16742976,119470.0,119420.0,0.19548771]
[1755056442924,0.26760203,119470.0,119460.0,0.00526]
[1755056443354,0.26760203,119470.0,119460.0,0.20594]
[1755056443580,0.29270703,119470.0,119460.0,0.20594]
[1755056443957,1.50570169,119470.0,119460.0,0.33734]
[1755056444360,1.50670169,119470.0,119460.0,0.33734]
[1755056445538,1.5150553,119470.0,119460.0,0.33734]
[1755056445747,1.5150553,119470.0,119460.0,0.33532]
[1755056446376,1.5316774,119470.0,119460.0,0.33532]
[1755056447231,1.5316774,119470.0,119460.0,0.33208]
[1755056447449,1.5316774,119470.0,119460.0,0.33532]
[1755056447632,1.55643357,119470.0,119460.0,0.33532]
[1755056448290,1.55643357,119470.0,119460.0,0.33208]
[1755056448493,1.556437,119470.0,119460.0,0.33208]
[1755056449082,1.55643406,119470.0,119460.0,0.33208]
[1755056449585,1.55643406,119470.0,119460.0,0.33532]
[1755056451113,0.3434394,119470.0,119460.0,0.33532]
[1755056451323,1.55643406,119470.0,119460.0,0.33532]
[1755056452226,1.58016473,119470.0,119460.0,0.33532]
[1755056452452,1.55643406,119470.0,119460.0,0.33734]
[1755056457440,1.54081147,119470.0,119460.0,0.33734]
[1755056457696,1.55642677,119470.0,119460.0,0.33734]
[1755056465629,1.55643593,119470.0,119460.0,0.33734]
[1755056466276,1.54808232,119470.0,119460.0,0.33734]
[1755056468598,0.94158499,119470.0,119460.0,0.33734]
[1755056468801,1.54809392,119470.0,119460.0,0.33734]
[1755056475063,1.54812154,119470.0,119460.0,0.33734]
[1755056475492,0.92417519,119470.0,119460.0,0.33734]
[1755056475690,0.80103209,119470.0,119460.0,0.33734]
[1755056478717,0.63360233,119470.0,119460.0,0.33734]
[1755056479686,0.63260233,119470.0,119460.0,0.33734]
[1755056480112,0.63160233,119470.0,119460.0,0.33734]
[1755056484341,0.60649733,119470.0,119460.0,0.33734]
[1755056488839,0.60649733,119470.0,119460.0,0.20594]
[1755056489046,0.60649733,119470.0,119460.0,0.33766]
[1755056489670,0.77390337,119470.0,119460.0,0.20606]
[1755056489881,0.77390337,119470.0,119460.0,0.33766]
[1755056490118,0.60649733,119470.0,119460.0,0.33766]
[1755056490859,0.77390337,119470.0,119460.0,0.33766]
[1755056491234,0.79900337,119470.0,119460.0,0.33766]
[1755056491883,0.80740922,119470.0,119460.0,0.33766]
[1755056492086,0.79900337,119470.0,119460.0,0.33766]
[1755056493131,0.79900337,119470.0,119460.0,0.2061]
[1755056493339,0.79900337,119470.0,119460.0,0.20396]
[1755056493546,0.15905005,119460.0,119450.0,0.00311]
[1755056493763,0.16743407,119450.0,119440.0,0.10747]
[1755056493978,1.38042873,119450.0,119440.0,0.43668]
[1755056494785,1.37942873,119450.0,119440.0,0.43979]
[1755056495012,1.37947749,119450.0,119440.0,0.43979]
[1755056496457,1.37947749,119450.0,119440.0,0.44179]
[1755056497008,1.40458349,119450.0,119440.0,0.44279]
[1755056497613,1.40458349,119450.0,119440.0,0.31119]
[1755056497850,1.40458349,119450.0,119440.0,0.44279]
[1755056498047,1.40458349,119450.0,119440.0,0.11047]
[1755056498255,1.40458349,119450.0,119440.0,0.44275]
[1755056501742,1.40458349,119450.0,119440.0,0.33839]
[1755056504045,1.40458349,119450.0,119440.0,0.3404]
[1755056514198,1.40458349,119450.0,119440.0,0.20884]
[1755056514417,1.40458349,119450.0,119440.0,0.3398]
[1755056520633,1.55384675,119450.0,119440.0,0.3398]
[1755056521395,1.38741268,119450.0,119440.0,0.3398]
[1755056521679,0.02515476,119450.0,119440.0,0.5398]
[1755056521884,0.68117772,119450.0,119440.0,0.5398]
[1755056523011,0.68117772,119450.0,119440.0,0.53972]
[1755056523673,0.68117772,119450.0,119440.0,0.53968]
[1755056523900,1.36230668,119450.0,119440.0,0.53968]
[1755056524128,1.36230668,119450.0,119440.0,0.40884]
[1755056524370,1.36230668,119450.0,119440.0,0.53968]
[1755056524797,4.876e-05,119450.0,119440.0,0.53968]
[1755056525011,1.2108163,119450.0,119440.0,0.53968]
[1755056526514,0.60543253,119450.0,119440.0,0.53968]
[1755056526744,0.60543253,119450.0,119440.0,0.20884]
[1755056527011,1.2108163,119450.0,119440.0,0.33968]
[1755056527426,0.60543253,119450.0,119440.0,0.33968]
[1755056529195,4.876e-05,119450.0,119440.0,0.33968]
[1755056529406,0.61066483,119450.0,119440.0,0.33968]
[1755056529612,0.60543253,119450.0,119440.0,0.33968]
[1755056532727,0.60543253,119450.0,119440.0,0.33964]
[1755056533474,4.876e-05,119450.0,119440.0,0.33964]
[1755056533676,0.61066483,119450.0,119440.0,0.33964]
[1755056533884,4.876e-05,119450.0,119440.0,0.33964]
[1755056534105,0.61066483,119450.0,119440.0,0.33964]
[1755056534314,0.60543253,119450.0,119440.0,0.33964]
[1755056539376,1.2108163,119450.0,119440.0,0.20884]
[1755056539626,1.2108163,119450.0,119440.0,0.3396]
[1755056541623,0.60543253,119450.0,119440.0,0.3396]
[1755056542665,1.37825037,119450.0,119440.0,0.3344]
[1755056547575,1.37825037,119450.0,119440.0,0.20678]
[1755056547776,1.37825037,119450.0,119440.0,0.33436]
[1755056548890,1.40335637,119450.0,119440.0,0.33436]
[1755056549420,1.40335637,119450.0,119440.0,0.20896]
[1755056549848,1.40335637,119450.0,119440.0,0.33956]
[1755056550423,1.40103637,119450.0,119440.0,0.33956]
[1755056551426,1.40103637,119450.0,119440.0,0.33752]
[1755056552892,1.40103637,119450.0,119440.0,0.33432]
[1755056554832,1.40103637,119450.0,119440.0,0.20372]
[1755056555043,0.19254007,119450.0,119440.0,0.33424]
[1755056555243,1.40330761,119450.0,119440.0,0.33424]
[1755056556045,1.40330761,119450.0,119440.0,0.33744]
[1755056556464,1.40330761,119450.0,119440.0,0.33948]
[1755056559077,1.40330761,119450.0,119440.0,0.33744]
[1755056560636,1.55480919,119450.0,119440.0,0.33744]
[1755056566539,1.55480919,119450.0,119440.0,0.33948]
[1755056567176,0.19254007,119450.0,119440.0,0.33948]
[1755056567312,1.55480919,119450.0,119440.0,0.33948]
[1755056570434,0.70624056,119450.0,119440.0,0.33948]
[1755056570864,1.38737512,119450.0,119440.0,0.33948]
[1755056571621,1.55480919,119450.0,119440.0,0.33948]
[1755056571829,1.63753244,119450.0,119440.0,0.20372]
[1755056572042,1.63753244,119450.0,119440.0,0.335]
[1755056573074,1.63753244,119450.0,119440.0,0.334]
[1755056573290,1.63853244,119450.0,119440.0,0.332]
[1755056573482,1.64053244,119450.0,119440.0,0.332]
[1755056573921,1.64053244,119450.0,119410.0,0.30756]
[1755056573922,0.16747613,119420.0,119410.0,0.30756]
[1755056574126,1.53236206,119420.0,119410.0,0.64152]
[1755056574327,1.52974525,119420.0,119410.0,0.64152]
[1755056575657,1.55485925,119420.0,119410.0,0.64252]
[1755056576063,1.55485925,119420.0,119410.0,0.64452]
[1755056576645,1.40404783,119420.0,119410.0,0.64452]
[1755056577539,0.79831898,119420.0,119410.0,0.64452]
[1755056579371,0.79831898,119420.0,119410.0,0.3126]
[1755056579599,0.79831898,119420.0,119410.0,0.64448]
[1755056581493,0.63084285,119420.0,119410.0,0.64448]
[1755056582423,0.60572885,119420.0,119410.0,0.64448]
[1755056583308,0.60572885,119420.0,119410.0,0.6444]
[1755056585248,0.19257124,119430.0,119410.0,0.6444]
[1755056585454,0.60572885,119420.0,119410.0,0.6412]
[1755056586093,0.60572885,119420.0,119410.0,0.64333]
[1755056586537,0.60572885,119420.0,119410.0,0.64433]
[1755056586954,0.60572885,119420.0,119410.0,0.64333]
[1755056587367,0.77320498,119420.0,119410.0,0.44333]
[1755056587575,0.60572885,119420.0,119410.0,0.44333]
[1755056587909,0.60572885,119420.0,119410.0,0.33997]
[1755056589553,0.77320498,119420.0,119410.0,0.33981]
[1755056589981,0.60572885,119420.0,119410.0,0.33981]
[1755056592005,0.77320498,119420.0,119410.0,0.33981]
[1755056593204,0.60572885,119420.0,119410.0,0.33981]
[1755056594878,0.77320498,119420.0,119410.0,0.33981]
[1755056595762,1.37893383,119420.0,119410.0,0.33777]
[1755056596121,1.40404483,119420.0,119410.0,0.33777]
[1755056597941,0.79831598,119420.0,119410.0,0.33777]
[1755056598495,0.79831598,119420.0,119410.0,0.33984]
[1755056600991,1.40404483,119420.0,119410.0,0.20376]
[1755056601216,1.40404483,119420.0,119410.0,0.33432]
[1755056601949,1.40404483,119420.0,119410.0,0.33232]
[1755056602377,1.40604483,119420.0,119410.0,0.33132]
[1755056602606,1.40704483,119420.0,119410.0,0.33132]
[1755056606165,1.40704483,119420.0,119410.0,0.33445]
[1755056610937,1.40704483,119420.0,119410.0,0.33132]
[1755056611803,1.48976808,119420.0,119410.0,0.33132]
[1755056615070,1.48976808,119420.0,119410.0,0.33454]
[1755056615429,0.27831038,119420.0,119410.0,0.33454]
[1755056615630,1.48976808,119420.0,119410.0,0.33454]
[1755056618345,1.48788808,119420.0,119410.0,0.33454]
[1755056619866,1.48788808,119420.0,119410.0,0.33132]
[1755056628296,1.48788808,119420.0,119410.0,0.33454]
[1755056628499,1.48788808,119420.0,119410.0,0.20398]
[1755056628700,1.48788808,119420.0,119410.0,0.33422]
[1755056629300,1.48788808,119420.0,119410.0,0.20398]
[1755056629510,1.48788808,119420.0,119410.0,0.33422]
[1755056631422,0.17588059,119400.0,119370.0,0.02643139]
[1755056631670,0.78160944,119400.0,119390.0,0.00201]
[1755056632724,0.78160944,119400.0,119390.0,0.13273896]
[1755056632896,1.38733829,119400.0,119390.0,0.13273896]
[1755056633204,1.38733829,119400.0,119390.0,0.13373896]
[1755056633347,1.38733829,119400.0,119390.0,0.13695896]
[1755056636366,1.38733708,119400.0,119390.0,0.13695896]
[1755056636700,1.53910798,119400.0,119390.0,0.13695896]
[1755056637539,2.22072228,119400.0,119390.0,0.13695896]
[1755056639457,2.22072228,119400.0,119390.0,0.00671896]
[1755056639660,2.22072228,119400.0,119390.0,0.33775896]
[1755056640051,2.22072228,119400.0,119390.0,0.20751896]
[1755056640345,2.22072228,119400.0,119390.0,0.33775896]
[1755056640546,2.22072228,119400.0,119390.0,0.20751896]
[1755056640681,2.24583828,119400.0,119390.0,0.20751896]
[1755056640889,2.24781828,119400.0,119390.0,0.20751896]
[1755056641080,2.24781828,119400.0,119390.0,0.33252896]
[1755056642148,2.24781828,119400.0,119390.0,0.33152896]
[1755056642342,2.24881828,119400.0,119390.0,0.33152896]
[1755056642680,2.33154153,119400.0,119390.0,0.20128896]
[1755056642882,2.33154153,119400.0,119390.0,0.33152896]
[1755056643829,2.33403153,119400.0,119390.0,0.33152896]
[1755056644814,2.10771195,119400.0,119390.0,0.33152896]
[1755056645024,2.10871195,119400.0,119390.0,0.33152896]
[1755056646027,2.10771195,119400.0,119390.0,0.33152896]
[1755056646233,1.50253751,119400.0,119390.0,0.33152896]
[1755056646462,2.10871195,119400.0,119390.0,0.33152896]
[1755056653809,0.29018863,119400.0,119390.0,0.33152896]
[1755056654007,2.10871195,119400.0,119390.0,0.33152896]
[1755056655062,1.50253751,119400.0,119390.0,0.33152896]
[1755056655241,1.50004751,119400.0,119390.0,0.33152896]
[1755056655470,2.10622195,119400.0,119390.0,0.33152896]
[1755056660278,2.10585434,119400.0,119390.0,0.33152896]
[1755056662469,2.10834434,119400.0,119390.0,0.33152896]
[1755056664443,2.10585434,119400.0,119390.0,0.33152896]
[1755056664809,2.33320733,119400.0,119390.0,0.33152896]
[1755056672893,4.38157364,119400.0,119390.0,0.33148896]
[1755056674047,4.39723225,119400.0,119390.0,0.33148896]
[1755056674904,2.34886594,119400.0,119390.0,0.33148896]
[1755056675099,4.39474225,119400.0,119390.0,0.33148896]
[1755056677436,4.39723225,119400.0,119390.0,0.33148896]
[1755056677637,4.38157364,119400.0,119390.0,0.33148896]
[1755056677836,4.39723327,119400.0,119390.0,0.33148896]
[1755056678329,4.39474327,119400.0,119390.0,0.33148896]
[1755056678495,2.34886696,119400.0,119390.0,0.33148896]
[1755056680346,2.34886775,119400.0,119390.0,0.33148896]
[1755056684008,2.34886555,119400.0,119390.0,0.33148896]
[1755056685738,4.39474186,119400.0,119390.0,0.33148896]
[1755056686326,4.39326186,119400.0,119390.0,0.33148896]
[1755056686927,4.3932602,119400.0,119390.0,0.33148896]
[1755056687133,4.3957602,119400.0,119390.0,0.33148896]
[1755056687519,4.39575917,119400.0,119390.0,0.33148896]
[1755056688518,4.39575917,119400.0,119390.0,0.20128896]
[1755056688781,4.39575917,119400.0,119390.0,0.33148896]
[1755056689335,4.38010364,119400.0,119390.0,0.33148896]
[1755056689533,4.39575788,119400.0,119390.0,0.33148896]
[1755056689888,0.16751821,119390.0,119380.0,0.00297]
[1755056690099,2.29873524,119390.0,119380.0,0.206]
[1755056690307,2.29611777,119390.0,119380.0,0.206]
[1755056690719,2.32323077,119390.0,119380.0,0.206]
[1755056691150,2.32323077,119390.0,119380.0,0.3362]
[1755056691294,2.32124077,119390.0,119380.0,0.3362]
[1755056692816,2.32124077,119390.0,119380.0,0.206]
[1755056693170,2.32124077,119390.0,119380.0,0.33616]
[1755056696273,2.32336077,119390.0,119380.0,0.33104]
[1755056697814,2.34101478,119390.0,119380.0,0.20088]
[1755056698020,2.34101478,119390.0,119380.0,0.33104]
[1755056698449,2.34301478,119390.0,119380.0,0.33104]
[1755056699516,0.29713847,119390.0,119380.0,0.20088]
[1755056699735,2.34301478,119390.0,119380.0,0.33104]
[1755056701362,2.34301541,119390.0,119380.0,0.33104]
[1755056704027,1.65893664,119390.0,119380.0,0.33628]
[1755056704434,2.34089522,119390.0,119380.0,0.33628]
[1755056707669,2.34089479,119390.0,119380.0,0.33628]
[1755056708815,2.34089479,119390.0,119380.0,0.33104]
[1755056709022,2.34288479,119390.0,119380.0,0.33104]
[1755056709350,2.34288479,119390.0,119380.0,0.33418]
[1755056711880,2.34288479,119390.0,119380.0,0.33104]
[1755056713477,2.32723077,119390.0,119380.0,0.33104]
[1755056713669,2.34288475,119390.0,119380.0,0.33104]
[1755056716560,2.32723077,119390.0,119380.0,0.33104]
[1755056716751,2.34288645,119390.0,119380.0,0.33104]
[1755056718389,2.34288645,119390.0,119380.0,0.20088]
[1755056718589,2.34288645,119390.0,119380.0,0.33196]
[1755056719169,2.34288645,119390.0,119360.0,0.00314]
[1755056719170,0.16755889,119370.0,119360.0,0.00314]
[1755056719560,0.93485882,119370.0,119360.0,0.20612]
[1755056719773,0.93224091,119370.0,119360.0,0.3372]
[1755056720167,0.93423091,119370.0,119360.0,0.3372]
[1755056720650,0.93623091,119370.0,119360.0,0.3372]
[1755056721274,0.96135891,119370.0,119360.0,0.3372]
[1755056721636,0.96235891,119370.0,119360.0,0.3372]
[1755056721858,0.98779861,119370.0,119360.0,0.3372]
[1755056722928,0.9963211,119370.0,119360.0,0.3372]
[1755056723343,2.36023864,119370.0,119360.0,0.3372]
[1755056724258,2.36023864,119370.0,119360.0,0.33406]
[1755056725352,0.31436233,119370.0,119360.0,0.33406]
[1755056725554,2.35824864,119370.0,119360.0,0.3372]
[1755056727268,2.35824864,119370.0,119350.0,0.20108]
[1755056727269,0.19256032,119360.0,119350.0,0.20108]
[1755056727469,2.33876714,119360.0,119350.0,0.332]
[1755056728074,2.36389714,119360.0,119350.0,0.332]
[1755056728505,2.36489714,119360.0,119350.0,0.332]
[1755056730705,2.13912125,119360.0,119350.0,0.332]
[1755056732030,2.13909423,119360.0,119350.0,0.332]
[1755056733210,2.15654325,119360.0,119350.0,0.332]
[1755056734429,2.15653364,119360.0,119350.0,0.332]
[1755056734993,2.15653345,119360.0,119350.0,0.332]
[1755056736628,2.14094301,119360.0,119350.0,0.332]
[1755056736805,2.15653077,119360.0,119350.0,0.332]
[1755056737384,0.16757436,119350.0,119340.0,0.00334]
[1755056737585,1.46829623,119350.0,119340.0,0.20112]
[1755056737785,1.46567789,119350.0,119340.0,0.20112]
[1755056738265,1.48126409,119350.0,119340.0,0.20422]
[1755056738683,1.48126409,119350.0,119340.0,0.33695]
[1755056738889,1.48126409,119350.0,119340.0,0.33795]
[1755056739956,1.50639809,119350.0,119340.0,0.33795]
[1755056741473,1.50639836,119350.0,119340.0,0.33795]
[1755056741771,1.50639911,119350.0,119340.0,0.33795]
[1755056742137,1.50441911,119350.0,119340.0,0.33795]
[1755056747395,1.50443076,119350.0,119340.0,0.33795]
[1755056750383,1.48883189,119350.0,119340.0,0.33795]
[1755056750535,1.50444694,119350.0,119340.0,0.33795]
[1755056750948,1.50444694,119350.0,119340.0,0.33827]
[1755056751890,1.50642694,119350.0,119340.0,0.33827]
[1755056752650,2.34078035,119350.0,119340.0,0.33827]
[1755056753495,2.34078572,119350.0,119340.0,0.33827]
[1755056754478,2.33958572,119350.0,119340.0,0.33827]
[1755056754699,2.33958572,119350.0,119340.0,0.3332]
[1755056756630,2.33958572,119350.0,119340.0,0.20212]
[1755056758013,4.36143326,119340.0,119330.0,0.20096]
[1755056758212,0.29107426,119340.0,119330.0,0.20096]
[1755056758463,2.33882176,119340.0,119330.0,0.20096]
[1755056758653,2.33882176,119340.0,119330.0,0.33204]
[1755056758851,1.50485286,119340.0,119330.0,0.33204]
[1755056759090,1.50585286,119340.0,119330.0,0.33204]
[1755056759428,1.49022625,119340.0,119330.0,0.33204]
[1755056759624,1.50686928,119340.0,119330.0,0.33204]
[1755056761292,0.16760244,119330.0,119320.0,0.0033]
[1755056761496,1.4823661,119330.0,119320.0,0.33735]
[1755056761693,1.47974732,119330.0,119320.0,0.33735]
[1755056762062,1.50488332,119330.0,119320.0,0.33735]
[1755056764258,0.29110472,119330.0,119320.0,0.33735]
[1755056764457,1.50488332,119330.0,119320.0,0.33735]
[1755056765108,1.50488332,119330.0,119320.0,0.00531]
[1755056765334,1.50488332,119330.0,119320.0,0.33727]
[1755056766722,1.50686332,119330.0,119320.0,0.33727]
[1755056767331,1.55710332,119330.0,119320.0,0.33727]
[1755056767527,1.50686332,119330.0,119320.0,0.33727]
[1755056768129,1.50686332,119330.0,119320.0,0.0002]
[1755056768332,1.50686332,119330.0,119320.0,0.33212]
[1755056770873,1.50684319,119330.0,119320.0,0.33212]
[1755056771074,1.50684319,119330.0,119320.0,0.3372]
[1755056772944,1.50684319,119330.0,119320.0,0.33519]
[1755056773148,1.50684042,119330.0,119320.0,0.33212]
[1755056774764,1.50684042,119330.0,119320.0,0.33236]
[1755056775303,2.11622972,119330.0,119320.0,0.33236]
[1755056776035,0.29556182,119330.0,119320.0,0.33236]
[1755056776259,1.50934042,119330.0,119320.0,0.33236]
[1755056776664,1.55178944,119330.0,119320.0,0.33236]
[1755056776877,1.54928944,119330.0,119320.0,0.33236]
[1755056777076,1.50486042,119330.0,119320.0,0.33744]
[1755056777291,1.50685042,119330.0,119320.0,0.33744]
[1755056778314,1.49123029,119330.0,119320.0,0.33744]
[1755056779675,1.49123029,119330.0,119320.0,0.33236]
[1755056781867,1.51623029,119330.0,119320.0,0.33224]
[1755056782597,1.50684098,119330.0,119320.0,0.33224]
[1755056783048,1.53184098,119330.0,119320.0,0.33224]
[1755056783774,1.57678,119330.0,119320.0,0.33224]
[1755056784646,1.57429,119330.0,119320.0,0.33224]
[1755056784856,1.5723,119330.0,119320.0,0.33732]
[1755056785292,1.5473,119330.0,119320.0,0.33732]
[1755056785538,1.5723,119330.0,119320.0,0.33732]
[1755056785754,1.5473,119330.0,119320.0,0.33732]
[1755056786228,1.5223,119330.0,119320.0,0.33732]
[1755056786459,1.50485098,119330.0,119320.0,0.33732]
[1755056786676,1.48924029,119330.0,119320.0,0.33732]
[1755056788071,0.88235099,119330.0,119320.0,0.33732]
[1755056788299,0.88235099,119330.0,119320.0,0.36089]
[1755056788936,0.27546169,119330.0,119320.0,0.36089]
[1755056789137,0.88235099,119330.0,119320.0,0.36089]
[1755056789992,0.6320253,119330.0,119320.0,0.36089]
[1755056790198,0.6320253,119330.0,119320.0,0.36189]
[1755056790404,0.6320253,119330.0,119320.0,0.56289]
[1755056791018,0.6068893,119330.0,119320.0,0.56289]
[1755056791274,0.19271961,119340.0,119320.0,0.56289]
[1755056791507,0.19271861,119340.0,119330.0,0.00308]
[1755056791713,0.19271861,119340.0,119330.0,0.00514]
[1755056792673,0.79960791,119340.0,119330.0,0.00514]
[1755056794284,0.19271861,119340.0,119330.0,0.00514]
[1755056794452,0.79960791,119340.0,119330.0,0.00514]
[1755056801572,0.19271861,119340.0,119330.0,0.00514]
[1755056801777,0.88431116,119340.0,119330.0,0.00514]
[1755056802359,0.88233116,119340.0,119330.0,0.00514]